fUSD/lending_fUSD_20240519
["ID","MTS","AMOUNT","RATE_DAILY","PERIOD"]
[327496845,1716125487510,-817.19,0.00028286,2]
[327496846,1716125487520,-500.0,0.00028286,2]
[327496847,1716125487530,-854.39,0.00028286,2]
[327496848,1716125487539,-666.0,0.00028286,2]
[327496849,1716125487549,-637.12,0.00028286,2]
[327496850,1716125487559,-857.61,0.00028286,2]
[327496851,1716125487571,-500.0,0.00028286,2]
[327496852,1716125487682,-518.83,0.00028286,2]
[327496853,1716125487704,-500.0,0.00028286,2]
[327496854,1716125487714,-726.23,0.00028286,2]
[327496855,1716125487725,-762.51,0.00028286,2]
[327496856,1716125487735,-500.0,0.00028286,2]
[327496857,1716125487744,-1281.27,0.00028286,2]
[327496858,1716125487754,-1187.11,0.00028286,2]
[327496859,1716125487764,-820.48,0.00028286,2]
[327496860,1716125487774,-500.0,0.00028286,2]
[327496861,1716125487783,-1052.6,0.00028286,2]
[327496862,1716125487793,-763.43,0.00028286,2]
[327496863,1716125487802,-1150.72,0.00028286,2]
[327496864,1716125487812,-3667.38,0.00028286,2]
[327496865,1716125487823,-1211.58,0.00028286,2]
[327496866,1716125487833,-986.86,0.00028286,2]
[327496867,1716125487842,-500.0,0.00028286,2]
[327496868,1716125487852,-740.89,0.00028286,2]
[327496869,1716125487862,-500.0,0.00028286,2]
[327496870,1716125487871,-533.27,0.00028286,2]
[327496871,1716125487881,-975.8,0.00028286,2]
[327496872,1716125487890,-1384.87,0.00028286,2]
[327496873,1716125487900,-1006.42,0.00028286,2]
[327496874,1716125487910,-500.0,0.00028286,2]
[327496875,1716125487919,-2304.66,0.00028286,2]
[327496876,1716125487929,-2722.15,0.00028286,2]
[327496877,1716125487939,-3116.58,0.00028286,2]
[327496878,1716125487948,-500.0,0.00028286,2]
[327496879,1716125487960,-942.59,0.00028286,2]
[327496880,1716125487971,-500.0,0.00028286,2]
[327496881,1716125487981,-15816.75,0.00028286,2]
[327496882,1716125487991,-849.34,0.00028286,2]
[327496883,1716125488000,-366.59461115,0.00028286,2]
[327496884,1716125488010,-500.0,0.00028286,2]
[327496885,1716125488019,-500.0,0.00028286,2]
[327496886,1716125488029,-1608.23,0.00028286,2]
[327496887,1716125488039,-500.0,0.00028286,2]
[327496888,1716125488048,-500.0,0.00028286,2]
[327496889,1716125488058,-9478.72,0.00028286,2]
[327496890,1716125488069,-500.0,0.00028287,7]
[327496891,1716125488078,-500.0,0.00028287,2]
[327496892,1716125488087,-606.15,0.00028287,2]
[327496893,1716125488096,-500.0,0.00028287,2]
[327496894,1716125488106,-542.22062972,0.00028287,2]
[327496895,1716125488115,-247.96156866,0.00028287,2]
[327496896,1716125488125,-500.0,0.00028287,2]
[327496897,1716125488135,-815.2,0.00028287,2]
[327496898,1716125488144,-615.48,0.00028287,2]
[327496899,1716125488154,-725.95,0.00028287,2]
[327496900,1716125488164,-500.0,0.00028287,2]
[327496901,1716125488176,-252.68111217,0.00028287,2]
[327496902,1716125488186,-228.04221252,0.00028287,2]
[327496903,1716125488195,-988.92,0.00028287,2]
[327496904,1716125488206,-500.0,0.00028287,2]
[327496905,1716125488215,-780.74,0.00028287,2]
[327496906,1716125488224,-500.0,0.00028287,2]
[327496907,1716125488234,-619.66,0.00028287,2]
[327496908,1716125488243,-500.0,0.00028287,2]
[327496909,1716125488255,-500.0,0.00028287,2]
[327496910,1716125488265,-500.0,0.00028287,2]
[327496911,1716125488275,-846.91,0.00028287,2]
[327496912,1716125488284,-982.33,0.00028287,2]
[327496913,1716125488293,-500.0,0.00028287,2]
[327496914,1716125488303,-1644.32,0.00028287,2]
[327496915,1716125488313,-1782.9,0.00028287,2]
[327496916,1716125488325,-500.0,0.00028287,2]
[327496917,1716125488335,-700.7,0.00028287,2]
[327496918,1716125488344,-1923.11,0.00028287,2]
[327496919,1716125488354,-1095.98,0.00028287,2]
[327496920,1716125488363,-1383.57,0.00028287,2]
[327496921,1716125488372,-1151.71,0.00028287,2]
[327496922,1716125488382,-1219.6,0.00028287,2]
[327496923,1716125488391,-848.32,0.00028287,2]
[327496924,1716125488401,-500.0,0.00028287,2]
[327496925,1716125488411,-777.11,0.00028287,2]
[327496926,1716125488420,-500.0,0.00028287,2]
[327496927,1716125488429,-1055.0,0.00028287,2]
[327496928,1716125488439,-512.59,0.00028287,2]
[327496929,1716125488449,-541.07,0.00028287,2]
[327496930,1716125488458,-828.51,0.00028287,2]
[327496931,1716125488468,-989.78,0.00028287,2]
[327496932,1716125488478,-611.27,0.00028287,2]
[327496933,1716125488488,-500.0,0.00028287,2]
[327496934,1716125488497,-1162.85,0.00028287,2]
[327496935,1716125488507,-500.0,0.00028287,2]
[327496936,1716125488516,-540.7,0.00028287,2]
[327496937,1716125488526,-3682.75,0.00028287,2]
[327496938,1716125488536,-500.0,0.00028287,2]
[327496939,1716125488545,-1892.05,0.00028287,2]
[327496940,1716125488555,-1015.08,0.00028287,2]
[327496941,1716125488568,-878.61,0.00028287,2]
[327496942,1716125488578,-871.12,0.00028287,2]
[327496943,1716125488587,-500.0,0.00028287,2]
[327496944,1716125488597,-1467.74,0.00028287,2]
[327496945,1716125488606,-500.0,0.00028287,2]
[327496946,1716125488616,-1893.57,0.00028287,2]
[327496947,1716125488627,-533.14,0.00028287,2]
[327496948,1716125488637,-500.0,0.00028287,2]
[327496949,1716125488647,-500.0,0.00028287,2]
[327496950,1716125488657,-656.36,0.00028287,2]
[327496951,1716125488667,-615.22,0.00028287,2]
[327496952,1716125488676,-810.74,0.00028287,2]
[327496953,1716125488685,-997.13,0.00028287,2]
[327496954,1716125488695,-837.85,0.00028287,2]
[327496955,1716125488704,-674.79,0.00028287,2]
[327496956,1716125488714,-2150.8,0.00028287,2]
[327496957,1716125488724,-235.2083935,0.00028287,2]
[327496958,1716125488733,-827.03,0.00028287,2]
[327496959,1716125488743,-2747.6,0.00028287,2]
[327496960,1716125488752,-1069.79,0.00028287,2]
[327496961,1716125488762,-4457.98,0.00028287,2]
[327496962,1716125488771,-925.95,0.00028287,2]
[327496963,1716125488781,-500.0,0.00028287,2]
[327496964,1716125488791,-896.89,0.00028287,2]
[327496965,1716125488801,-997.04,0.00028287,2]
[327496966,1716125488811,-6546.3,0.00028287,2]
[327496967,1716125488824,-744.57,0.00028287,2]
[327496968,1716125488833,-1036.81,0.00028287,2]
[327496969,1716125488842,-500.0,0.00028287,2]
[327496970,1716125488852,-500.0,0.00028287,2]
[327496971,1716125488861,-2745.43,0.00028287,2]
[327496972,1716125488871,-500.0,0.00028287,2]
[327496973,1716125488881,-521.3,0.00028287,2]
[327496974,1716125488891,-1015.07,0.00028287,2]
[327496975,1716125488901,-938.92,0.00028303,2]
[327496976,1716125488910,-220.0,0.0002843,2]
[327496977,1716125488920,-500.0,0.00028508,2]
[327496978,1716125488930,-500.0,0.00028508,2]
[327496979,1716125488939,-500.0,0.00028508,2]
[327496980,1716125488949,-500.0,0.00028508,2]
[327496981,1716125488959,-500.0,0.00028508,2]
[327496982,1716125488969,-510.09009243,0.00028508,2]
[327496983,1716125488979,-500.0,0.00028508,2]
[327496984,1716125488988,-500.0,0.00028508,2]
[327496985,1716125488998,-500.0,0.00028508,2]
[327496986,1716125489007,-500.0,0.00028508,2]
[327496987,1716125489017,-500.0,0.00028508,2]
[327496988,1716125489026,-500.0,0.00028508,2]
[327496989,1716125489036,-500.0,0.00028508,2]
[327496990,1716125489046,-500.0,0.00028508,2]
[327496991,1716125489056,-500.0,0.00028508,2]
[327496992,1716125489065,-674.97,0.00028508,2]
[327496993,1716125489075,-500.0,0.00028508,2]
[327496994,1716125489084,-838.37,0.00028508,2]
[327496995,1716125489093,-4449.99,0.00028508,2]
[327496996,1716125489102,-522.1,0.00028508,2]
[327496997,1716125489112,-227.46824781,0.00028509,2]
[327496998,1716125489121,-2017.93,0.00028509,2]
[327496999,1716125489131,-500.0,0.00028511,2]
[327497000,1716125489140,-191.68,0.00028511,2]
[327497001,1716125489149,-500.0,0.00028511,2]
[327497002,1716125489159,-500.0,0.00028511,2]
[327497003,1716125489170,-500.0,0.00028511,2]
[327497004,1716125489181,-167.74121459,0.00028511,2]
[327497005,1716125489190,-500.0,0.00028511,2]
[327497006,1716125489200,-500.0,0.00028511,2]
[327497007,1716125489211,-460.62,0.00028511,2]
[327497008,1716125489221,-198.16,0.00028511,2]
[327497009,1716125489231,-500.0,0.00028511,2]
[327497010,1716125489240,-474.14409693,0.00028516,7]
[327497011,1716125489252,-154.10962397,0.00028516,7]
[327497012,1716125489261,-150.0,0.00028516,7]
[327497013,1716125489271,-150.0,0.00028516,7]
[327497014,1716125489281,-173.75382498,0.00028516,7]
[327497015,1716125489290,-150.0,0.00028516,7]
[327497016,1716125489299,-150.0,0.00028516,7]
[327497017,1716125489309,-150.0,0.00028516,7]
[327497018,1716125489320,-150.0,0.00028516,7]
[327497019,1716125489330,-150.0,0.00028516,7]
[327497020,1716125489339,-278.336359,0.00028527,2]
[327497021,1716125489349,-168.625639,0.00028527,2]
[327497022,1716125489358,-3218.702548,0.00028527,2]
[327497023,1716125489368,-203.397563,0.00028527,2]
[327497024,1716125489377,-11620.285697,0.00028527,2]
[327497025,1716125489386,-3113.727306,0.00028527,2]
[327497026,1716125489396,-187.215959,0.00028527,2]
[327497027,1716125489405,-155.697586,0.00028527,2]
[327497028,1716125489414,-204.69719,0.00028527,2]
[327497029,1716125489423,-9517.00699,0.00028527,2]
[327497030,1716125489433,-4113.536787,0.00028527,2]
[327497031,1716125489442,-320.270047,0.00028527,2]
[327497032,1716125489451,-474.14409693,0.00028548,7]
[327497033,1716125489564,-154.10962397,0.00028548,7]
[327497034,1716125489575,-173.75382498,0.00028548,7]
[327497035,1716125489584,-657.56,0.0002856,2]
[327497036,1716125489595,-506.18,0.0002856,2]
[327497037,1716125489604,-253.15,0.0002856,2]
[327497038,1716125489614,-500.0,0.0002856,2]
[327497039,1716125489624,-500.0,0.0002856,2]
[327497040,1716125489633,-879.12,0.0002856,2]
[327497041,1716125489642,-671.24,0.0002856,2]
[327497042,1716125489652,-609.43,0.0002856,2]
[327497043,1716125489661,-2500.45,0.0002856,2]
[327497044,1716125489671,-843.99,0.0002856,2]
[327497045,1716125489680,-500.0,0.0002856,2]
[327497046,1716125489689,-500.0,0.0002856,2]
[327497047,1716125489700,-568.61,0.0002856,2]
[327497048,1716125489710,-817.19,0.0002856,2]
[327497049,1716125489722,-500.0,0.0002856,2]
[327497050,1716125489732,-854.39,0.0002856,2]
[327497051,1716125489744,-666.0,0.0002856,2]
[327497052,1716125489755,-637.12,0.0002856,2]
[327497053,1716125489765,-857.61,0.0002856,2]
[327497054,1716125489775,-500.0,0.0002856,2]
[327497055,1716125489785,-518.83,0.0002856,2]
[327497056,1716125489794,-500.0,0.0002856,2]
[327497057,1716125489804,-726.23,0.0002856,2]
[327497058,1716125489813,-762.51,0.0002856,2]
[327497059,1716125489824,-539.57,0.0002856,2]
[327497060,1716125489833,-1281.27,0.0002856,2]
[327497061,1716125489844,-1187.11,0.0002856,2]
[327497062,1716125489854,-820.48,0.0002856,2]
[327497063,1716125489863,-500.0,0.0002856,2]
[327497064,1716125489873,-1052.6,0.0002856,2]
[327497065,1716125489882,-763.43,0.0002856,2]
[327497066,1716125489892,-1150.72,0.0002856,2]
[327497067,1716125489901,-3667.38,0.0002856,2]
[327497068,1716125489910,-1211.58,0.0002856,2]
[327497069,1716125489919,-986.86,0.0002856,2]
[327497070,1716125489929,-500.0,0.0002856,2]
[327497071,1716125489939,-740.89,0.0002856,2]
[327497072,1716125489948,-500.0,0.0002856,2]
[327497073,1716125489959,-533.27,0.0002856,2]
[327497074,1716125489968,-975.8,0.0002856,2]
[327497075,1716125489978,-1384.87,0.0002856,2]
[327497076,1716125489987,-1006.42,0.0002856,2]
[327497077,1716125489996,-500.0,0.0002856,2]
[327497078,1716125490006,-2304.66,0.0002856,2]
[327497079,1716125490016,-2722.15,0.0002856,2]
[327497080,1716125490025,-3116.58,0.0002856,2]
[327497081,1716125490035,-500.0,0.0002856,2]
[327497082,1716125490044,-942.59,0.0002856,2]
[327497083,1716125490054,-500.0,0.0002856,2]
[327497084,1716125490063,-15816.75,0.0002856,2]
[327497085,1716125490073,-849.34,0.0002856,2]
[327497086,1716125490083,-500.0,0.0002856,2]
[327497087,1716125490092,-500.0,0.0002856,2]
[327497088,1716125490102,-1608.23,0.0002856,2]
[327497089,1716125490112,-500.0,0.0002856,2]
[327497090,1716125490122,-500.0,0.0002856,2]
[327497091,1716125490131,-9478.72,0.0002856,2]
[327497092,1716125490141,-500.0,0.00028561,7]
[327497093,1716125490151,-500.0,0.00028561,2]
[327497094,1716125490161,-606.15,0.00028561,2]
[327497095,1716125490173,-286.06,0.00028561,2]
[327497096,1716125490183,-500.0,0.00028561,2]
[327497097,1716125490193,-815.2,0.00028561,2]
[327497098,1716125490203,-615.48,0.00028561,2]
[327497099,1716125490213,-725.95,0.00028561,2]
[327497100,1716125490222,-500.0,0.00028561,2]
[327497101,1716125490232,-988.92,0.00028561,2]
[327497102,1716125490241,-500.0,0.00028561,2]
[327497103,1716125490253,-780.74,0.00028561,2]
[327497104,1716125490263,-500.0,0.00028561,2]
[327497105,1716125490272,-619.66,0.00028561,2]
[327497106,1716125490282,-500.0,0.00028561,2]
[327497107,1716125490293,-500.0,0.00028561,2]
[327497108,1716125490303,-500.0,0.00028561,2]
[327497109,1716125490313,-846.91,0.00028561,2]
[327497110,1716125490324,-982.33,0.00028561,2]
[327497111,1716125490334,-500.0,0.00028561,2]
[327497112,1716125490343,-1644.32,0.00028561,2]
[327497113,1716125490353,-1782.9,0.00028561,2]
[327497114,1716125490363,-500.0,0.00028561,2]
[327497115,1716125490373,-700.7,0.00028561,2]
[327497116,1716125490382,-1923.11,0.00028561,2]
[327497117,1716125490391,-1095.98,0.00028561,2]
[327497118,1716125490400,-1383.57,0.00028561,2]
[327497119,1716125490409,-1151.71,0.00028561,2]
[327497120,1716125490419,-1219.6,0.00028561,2]
[327497121,1716125490430,-848.32,0.00028561,2]
[327497122,1716125490440,-500.0,0.00028561,2]
[327497123,1716125490451,-777.11,0.00028561,2]
[327497124,1716125490462,-500.0,0.00028561,2]
[327497125,1716125490474,-1055.0,0.00028561,2]
[327497126,1716125490484,-512.59,0.00028561,2]
[327497127,1716125490494,-541.07,0.00028561,2]
[327497128,1716125490504,-828.51,0.00028561,2]
[327497129,1716125490514,-989.78,0.00028561,2]
[327497130,1716125490523,-157.35206505,0.00028561,2]
[327497131,1716125490533,-1162.85,0.00028561,2]
[327497132,1716125490542,-500.0,0.00028561,2]
[327497133,1716125490551,-540.7,0.00028561,2]
[327497134,1716125490560,-3682.75,0.00028561,2]
[327497135,1716125490571,-500.0,0.00028561,2]
[327497136,1716125490580,-1892.05,0.00028561,2]
[327497137,1716125490589,-1015.08,0.00028561,2]
[327497138,1716125490598,-878.61,0.00028561,2]
[327497139,1716125490608,-871.12,0.00028561,2]
[327497140,1716125490617,-500.0,0.00028561,2]
[327497141,1716125490626,-1467.74,0.00028561,2]
[327497142,1716125490636,-500.0,0.00028561,2]
[327497143,1716125490645,-1893.57,0.00028561,2]
[327497144,1716125490654,-533.14,0.00028561,2]
[327497145,1716125490664,-500.0,0.00028561,2]
[327497146,1716125490673,-497.65,0.00028561,2]
[327497147,1716125490683,-656.36,0.00028561,2]
[327497148,1716125490692,-615.22,0.00028561,2]
[327497149,1716125490702,-810.74,0.00028561,2]
[327497150,1716125490711,-997.13,0.00028561,2]
[327497151,1716125490720,-837.85,0.00028561,2]
[327497152,1716125490729,-674.79,0.00028561,2]
[327497153,1716125490738,-2150.8,0.00028561,2]
[327497154,1716125490747,-827.03,0.00028561,2]
[327497155,1716125490757,-2747.6,0.00028561,2]
[327497156,1716125490766,-1069.79,0.00028561,2]
[327497157,1716125490775,-4457.98,0.00028561,2]
[327497158,1716125490783,-925.95,0.00028561,2]
[327497159,1716125490793,-579.16004476,0.00028561,2]
[327497160,1716125490802,-896.89,0.00028561,2]
[327497161,1716125490811,-997.04,0.00028561,2]
[327497162,1716125490822,-6546.3,0.00028561,2]
[327497163,1716125490831,-744.57,0.00028561,2]
[327497164,1716125490840,-1036.81,0.00028561,2]
[327497165,1716125490850,-500.0,0.00028561,2]
[327497166,1716125490859,-500.0,0.00028561,2]
[327497167,1716125490869,-2745.43,0.00028561,2]
[327497168,1716125490879,-500.0,0.00028561,2]
[327497169,1716125490888,-521.3,0.00028561,2]
[327497170,1716125490898,-1015.07,0.00028561,2]
[327497171,1716125490907,-206.0,0.0002857,2]
[327497172,1716125490916,-219.0,0.0002857,2]
[327497173,1716125490926,-474.14409693,0.0002858,7]
[327497174,1716125490935,-154.10962397,0.0002858,7]
[327497175,1716125490944,-173.75382498,0.0002858,7]
[327497176,1716125490954,-474.14409693,0.00028612,7]
[327497177,1716125490963,-154.10962397,0.00028612,7]
[327497178,1716125490972,-173.75382498,0.00028612,7]
[327497179,1716125490983,-150.0,0.00028618,7]
[327497180,1716125490993,-984.13315849,0.0002863,30]
[327497181,1716125491002,-474.14409693,0.00028644,7]
[327497182,1716125491011,-154.10962397,0.00028644,7]
[327497183,1716125491020,-173.75382498,0.00028644,7]
[327497184,1716125491030,-474.14409693,0.00028676,7]
[327497185,1716125491039,-154.10962397,0.00028676,7]
[327497186,1716125491048,-173.75382498,0.00028676,7]
[327497187,1716125491057,-611.36,0.000287,2]
[327497188,1716125491069,-732.44,0.000287,2]
[327497189,1716125491078,-647.26,0.000287,2]
[327497190,1716125491087,-474.14409693,0.00028708,7]
[327497191,1716125491097,-154.10962397,0.00028708,7]
[327497192,1716125491106,-173.75382498,0.00028708,7]
[327497193,1716125491115,-150.0,0.00028714,7]
[327497194,1716125491123,-150.0,0.0002872,7]
[327497195,1716125491133,-474.14409693,0.0002874,7]
[327497196,1716125491142,-154.10962397,0.0002874,7]
[327497197,1716125491151,-173.75382498,0.0002874,7]
[327497198,1716125491161,-984.13315849,0.0002874,30]
[327497199,1716125491272,-217.0,0.00028767,2]
[327497200,1716125491281,-217.0,0.00028767,2]
[327497201,1716125491290,-700.0,0.0002877,2]
[327497202,1716125491300,-474.14409693,0.00028772,7]
[327497203,1716125491310,-154.10962397,0.00028772,7]
[327497204,1716125491321,-173.75382498,0.00028772,7]
[327497205,1716125491331,-576.50124838,0.00028782,2]
[327497206,1716125491340,-500.0,0.00028782,2]
[327497207,1716125491349,-605.02241638,0.00028782,2]
[327497208,1716125491358,-500.0,0.00028782,2]
[327497209,1716125491368,-500.0,0.00028782,2]
[327497210,1716125491377,-205.14486019,0.00028782,2]
[327497211,1716125491387,-500.0,0.00028782,2]
[327497212,1716125491396,-500.0,0.00028782,2]
[327497213,1716125491405,-500.0,0.00028782,2]
[327497214,1716125491414,-500.0,0.00028782,2]
[327497215,1716125491423,-500.0,0.00028782,2]
[327497216,1716125491432,-500.0,0.00028782,2]
[327497217,1716125491442,-500.0,0.00028782,2]
[327497218,1716125491451,-500.0,0.00028782,2]
[327497219,1716125491460,-674.97,0.00028782,2]
[327497220,1716125491469,-500.0,0.00028782,2]
[327497221,1716125491478,-838.37,0.00028782,2]
[327497222,1716125491487,-4449.99,0.00028782,2]
[327497223,1716125491496,-522.1,0.00028782,2]
[327497224,1716125491506,-2017.93,0.00028783,2]
[327497225,1716125491515,-500.0,0.00028785,2]
[327497226,1716125491524,-500.0,0.00028785,2]
[327497227,1716125491533,-500.0,0.00028785,2]
[327497228,1716125491542,-500.0,0.00028785,2]
[327497229,1716125491551,-619.34724045,0.00028785,2]
[327497230,1716125491561,-500.0,0.00028785,2]
[327497231,1716125491571,-429.24305267,0.00028785,2]
[327497232,1716125491581,-474.14409693,0.00028804,7]
[327497233,1716125491591,-154.10962397,0.00028804,7]
[327497234,1716125491599,-173.75382498,0.00028804,7]
[327497235,1716125491609,-150.0,0.00028822,7]
[327497236,1716125491618,-1059.36517778,0.00028824,8]
[327497237,1716125491628,-2148.025,0.00028827,2]
[327497238,1716125491637,-973.0,0.00028827,2]
[327497239,1716125491646,-657.56,0.00028833,2]
[327497240,1716125491656,-506.18,0.00028833,2]
[327497241,1716125491666,-500.0,0.00028833,2]
[327497242,1716125491675,-500.0,0.00028833,2]
[327497243,1716125491684,-879.12,0.00028833,2]
[327497244,1716125491694,-671.24,0.00028833,2]
[327497245,1716125491703,-609.43,0.00028833,2]
[327497246,1716125491713,-2500.45,0.00028833,2]
[327497247,1716125491723,-843.99,0.00028833,2]
[327497248,1716125491732,-500.0,0.00028833,2]
[327497249,1716125491742,-500.0,0.00028833,2]
[327497250,1716125491752,-568.61,0.00028833,2]
[327497251,1716125491761,-817.19,0.00028833,2]
[327497252,1716125491771,-500.0,0.00028833,2]
[327497253,1716125491781,-854.39,0.00028833,2]
[327497254,1716125491790,-666.0,0.00028833,2]
[327497255,1716125491799,-637.12,0.00028833,2]
[327497256,1716125491809,-857.61,0.00028833,2]
[327497257,1716125491819,-500.0,0.00028833,2]
[327497258,1716125491829,-518.83,0.00028833,2]
[327497259,1716125491838,-311.6,0.00028833,2]
[327497260,1716125491848,-726.23,0.00028833,2]
[327497261,1716125491857,-762.51,0.00028833,2]
[327497262,1716125491866,-1281.27,0.00028833,2]
[327497263,1716125491876,-1187.11,0.00028833,2]
[327497264,1716125491885,-820.48,0.00028833,2]
[327497265,1716125491895,-500.0,0.00028833,2]
[327497266,1716125491904,-1052.6,0.00028833,2]
[327497267,1716125491914,-763.43,0.00028833,2]
[327497268,1716125491924,-1150.72,0.00028833,2]
[327497269,1716125491934,-3667.38,0.00028833,2]
[327497270,1716125491943,-1211.58,0.00028833,2]
[327497271,1716125491952,-986.86,0.00028833,2]
[327497272,1716125491962,-500.0,0.00028833,2]
[327497273,1716125491971,-740.89,0.00028833,2]
[327497274,1716125491981,-500.0,0.00028833,2]
[327497275,1716125491991,-533.27,0.00028833,2]
[327497276,1716125492009,-975.8,0.00028833,2]
[327497277,1716125492025,-1384.87,0.00028833,2]
[327497278,1716125492044,-1006.42,0.00028833,2]
[327497279,1716125492062,-398.67103104,0.00028833,2]
[327497280,1716125492082,-2304.66,0.00028833,2]
[327497281,1716125492097,-2722.15,0.00028833,2]
[327497282,1716125492115,-3116.58,0.00028833,2]
[327497283,1716125492129,-500.0,0.00028833,2]
[327497284,1716125492145,-942.59,0.00028833,2]
[327497285,1716125492164,-500.0,0.00028833,2]
[327497286,1716125492185,-15816.75,0.00028833,2]
[327497287,1716125492198,-849.34,0.00028833,2]
[327497288,1716125492215,-230.49497139,0.00028833,2]
[327497289,1716125492230,-500.0,0.00028833,2]
[327497290,1716125492248,-1608.23,0.00028833,2]
[327497291,1716125492261,-500.0,0.00028833,2]
[327497292,1716125492279,-500.0,0.00028833,2]
[327497293,1716125492294,-9478.72,0.00028833,2]
[327497294,1716125492310,-500.0,0.00028835,7]
[327497295,1716125492326,-590.9575153,0.00028835,2]
[327497296,1716125492342,-606.15,0.00028835,2]
[327497297,1716125492358,-815.2,0.00028835,2]
[327497298,1716125492374,-615.48,0.00028835,2]
[327497299,1716125492389,-725.95,0.00028835,2]
[327497300,1716125492405,-500.0,0.00028835,2]
[327497301,1716125492420,-988.92,0.00028835,2]
[327497302,1716125492436,-500.0,0.00028835,2]
[327497303,1716125492452,-780.74,0.00028835,2]
[327497304,1716125492467,-395.47899345,0.00028835,2]
[327497305,1716125492482,-619.66,0.00028835,2]
[327497306,1716125492497,-500.0,0.00028835,2]
[327497307,1716125492511,-500.0,0.00028835,2]
[327497308,1716125492525,-500.0,0.00028835,2]
[327497309,1716125492541,-846.91,0.00028835,2]
[327497310,1716125492556,-982.33,0.00028835,2]
[327497311,1716125492571,-500.0,0.00028835,2]
[327497312,1716125492585,-1644.32,0.00028835,2]
[327497313,1716125492601,-1782.9,0.00028835,2]
[327497314,1716125492615,-500.0,0.00028835,2]
[327497315,1716125492633,-700.7,0.00028835,2]
[327497316,1716125492649,-1923.11,0.00028835,2]
[327497317,1716125492664,-1095.98,0.00028835,2]
[327497318,1716125492680,-1383.57,0.00028835,2]
[327497319,1716125492696,-1151.71,0.00028835,2]
[327497320,1716125492710,-1219.6,0.00028835,2]
[327497321,1716125492726,-848.32,0.00028835,2]
[327497322,1716125492742,-500.0,0.00028835,2]
[327497323,1716125492759,-777.11,0.00028835,2]
[327497324,1716125492774,-500.0,0.00028835,2]
[327497325,1716125492790,-1055.0,0.00028835,2]
[327497326,1716125492805,-512.59,0.00028835,2]
[327497327,1716125492821,-541.07,0.00028835,2]
[327497328,1716125492837,-828.51,0.00028835,2]
[327497329,1716125492852,-989.78,0.00028835,2]
[327497330,1716125492868,-1162.85,0.00028835,2]
[327497331,1716125492884,-500.0,0.00028835,2]
[327497332,1716125492900,-540.7,0.00028835,2]
[327497333,1716125492914,-3682.75,0.00028835,2]
[327497334,1716125492930,-500.0,0.00028835,2]
[327497335,1716125492944,-1892.05,0.00028835,2]
[327497336,1716125492960,-1015.08,0.00028835,2]
[327497337,1716125492976,-878.61,0.00028835,2]
[327497338,1716125492991,-871.12,0.00028835,2]
[327497339,1716125493006,-500.0,0.00028835,2]
[327497340,1716125493020,-1467.74,0.00028835,2]
[327497341,1716125493035,-500.0,0.00028835,2]
[327497342,1716125493050,-1893.57,0.00028835,2]
[327497343,1716125493067,-533.14,0.00028835,2]
[327497344,1716125493082,-500.0,0.00028835,2]